[Event "Teplice Open 2022"]
[Site "Teplice"]
[Date "2022.06.20"]
[Round "3.6"]
[White "Vlasak, Lukas"]
[Black "Romanov, Evgeny"]
[Result "1-0"]
[ECO "A45"]
[WhiteElo "2437"]
[BlackElo "2573"]
[Annotator "TA"]
[PlyCount "119"]
[EventDate "2022.06.18"]
[EventType "swiss"]
[EventCountry "CZE"]
[SourceTitle "playchess.com"]
[Source "ChessBase"]
[SourceQuality "1"]
[TimeControl "40/5400+30:1800+30"]

{[%evp 9,119,30,44,0,74,27,77,84,80,73,85,81,93,80,91,96,90,68,84,79,71,77,75,68,110,110,91,60,74,34,28,38,25,6,6,2,87,91,106,102,100,101,97,97,99,101,97,97,97,93,107,88,88,103,92,78,96,103,102,50,57,39,40,51,43,56,36,27,103,104,214,221,216,198,177,160,428,402,568,558,768,615,1960,1817,3398,2568,2213,1872,29960,29963,29964,29965,29963,29966,29966,29966,29967,29968,29967,29969,29968,29970,29970,29971,29971,29972,29971,29972,29974,29976,29975,29976]} 1. d4 {[%emt 0:00:04]} Nf6 {[%emt 0:13:23]} 2. Bf4 {[%emt 0:00:29]} d6 {[%emt 0:01:17]} 3. Nc3 {[%emt 0:00:11]} Nbd7 {[%emt 0:00:56]} 4. Nf3 {[%emt 0:00:08]} c5 {[%emt 0:02:02]} 5. d5 {[%emt 0:02:25]} Qb6 {[%emt 0:00:13] [#]} 6. a4 $146 {[%emt 0:22:21] A45: Trompowsky Attack.} ({Predecessor:} 6. Bd2 g6 7. e4 Bg7 8. a4 O-O 9. a5 Qd8 10. Be2 a6 11. h4 h5 12. Qc1 {1-0 (22) Hadzi Manev,L (2003)-Kostadinovski,Z (1893) Struga 2021}) 6... g6 {[%emt 0:01:41]} (6... Qxb2 $11 {keeps the balance.} 7. Bd2 Qb6) 7. a5 {[%emt 0:06:57]} ({White should play} 7. Qc1 $16) 7... Qd8 {[%emt 0:00:55]} (7... Qxb2 8. Bd2 $16) (7... Qb4 $1 $11 8. Bd2 Bg7) 8. e4 $16 {[%emt 0:01:18] White is better.} Bg7 {[%emt 0:00:07]} 9. Be2 {[%emt 0:00:47]} O-O {[%emt 0:00:09]} 10. O-O {[%emt 0:02:06]} Rb8 {[%emt 0:00:51]} 11. Re1 {[%emt 0:04:46]} Ne8 {[%emt 0:01:56]} 12. Qd2 {[%emt 0:06:12]} Nc7 {[%emt 0:02:23]} 13. Bh6 {[%emt 0:03:29]} f6 {[%emt 0:01:22]} 14. Bxg7 {[%emt 0:02:55] White is much more active. The black rooks are badly placed.} Kxg7 {[%emt 0:00:16]} 15. Reb1 {[%emt 0:04:11]} Ne5 {[%emt 0:03:50]} 16. Nxe5 {[%emt 0:02:44]} dxe5 {[%emt 0:00:59]} 17. Na4 {[%emt 0:03:48]} Qd6 {[%emt 0:03:52]} 18. Qc3 {[%emt 0:07:52]} b6 {[%emt 0:03:27]} 19. b4 {[%emt 0:01:48]} cxb4 {[%emt 0:06:32]} 20. Qxb4 {[%emt 0:00:40]} b5 {[%emt 0:24:08]} 21. c4 {[%emt 0:08:05][%cal Bc2c4,Bc4c5,Bc5c6][%mdl 32]} Qxb4 {[%emt 0:08:07]} 22. Rxb4 {[%emt 0:00:10][%cal Rc4b5]} Na6 {[%emt 0:00:58]} (22... Bg4 $1 $11 23. Bxg4 bxa4 24. Raxa4 (24. Rbxa4 Na6 $14) 24... Na6) 23. Rxb5 {[%emt 0:00:29]} Bd7 {[%emt 0:00:02]} 24. Rxb8 {[%emt 0:08:34]} Rxb8 {[%emt 0:00:07]} 25. c5 {[%emt 0:00:20]} Bb5 {[%emt 0:00:07]} 26. Kf1 {[%emt 0:01:55]} Bxe2+ {[%emt 0:00:38]} 27. Kxe2 {[%emt 0:00:06][%mdl 4096] Endgame KRN-KRN} Rb5 {[%emt 0:00:09]} 28. c6 {[%emt 0:05:27] Threatens to win with Nc3.} Rxa5 {[%emt 0:00:25]} 29. Ra2 {[%emt 0:00:15]} Kf7 {[%emt 0:00:50]} 30. Nc3 {[%emt 0:00:14]} Rxa2+ {[%emt 0:00:07]} 31. Nxa2 {[%emt 0:00:04] KN-KN} Ke8 {[%emt 0:00:07]} 32. f3 $1 {[%emt 0:03:17]} Nc5 {[%emt 0:02:56]} 33. Kd2 {[%emt 0:00:10]} f5 {[%emt 0:01:01]} 34. exf5 {[%emt 0:00:14]} (34. Nc3 $16) 34... gxf5 $14 {[%emt 0:00:04]} 35. Kc3 {[%emt 0:00:12] aiming for Kc4.} Kd8 {[%emt 0:00:41]} 36. Kc4 {[%emt 0:00:22]} Na4 {[%emt 0:00:17]} 37. Kb5 {[%emt 0:01:27]} (37. Kb4 $5 {[%cal Rb4a4]} Nb2 38. Kb5 $14) 37... Nb6 {[%emt 0:04:56]} 38. Nc3 {[%emt 0:00:07]} Kc7 {[%emt 0:00:42]} (38... Nc8 $1 $11) 39. Kc5 $16 {[%emt 0:01:30] White now steadily converts the win.} h5 {[%emt 0:01:33] Inhibits g4.} (39... Nc8 $16 {might work better.}) 40. Nb5+ $18 {[%emt 0:00:40]} Kb8 {[%emt 0:00:03]} 41. d6 $1 {[%emt 0:03:23]} exd6+ {[%emt 0:00:30]} 42. Nxd6 {[%emt 0:03:32]} Kc7 $2 {[%emt 0:03:54]} (42... f4 $16 43. Nf7 Kc7 44. Nxe5 Na4+ 45. Kd4 Nb6) 43. Nxf5 {[%emt 0:01:02]} Na4+ {[%emt 0:00:07]} (43... e4 $142 44. fxe4 Na4+ 45. Kb4 Nb2) 44. Kd5 {[%emt 0:01:45] Hoping for g4.} Nb6+ {[%emt 0:02:30]} 45. Kxe5 {[%emt 0:00:47] And now g4 would win.} Kxc6 {[%emt 0:01:40]} 46. g4 {[%emt 0:00:57]} hxg4 {[%emt 0:00:07]} 47. fxg4 {[%emt 0:00:04] Strongly threatening g5.} a5 {[%emt 0:00:45]} 48. g5 {[%emt 0:07:42] Ke6 would kill now.} a4 {[%emt 0:00:10]} 49. g6 {[%emt 0:09:26] White mates.} Nd7+ {[%emt 0:00:11]} 50. Kd4 {[%emt 0:00:11]} a3 {[%emt 0:00:16]} 51. Kc3 {[%emt 0:00:08]} Kd5 {[%emt 0:01:03]} 52. g7 {[%emt 0:00:07]} Nf6 {[%emt 0:00:08]} 53. Ne7+ {[%emt 0:00:18]} Ke6 {[%emt 0:06:10]} 54. g8=Q+ {[%emt 0:00:08]} Nxg8 {[%emt 0:00:05]} 55. Nxg8 {[%emt 0:00:10] KN-KP} Kf5 {[%emt 0:00:27] [#]} 56. Nh6+ $1 {[%emt 0:00:26]} ({Inferior is} 56. Kb3 a2 57. Kxa2 Kg4 $11) 56... Kf4 {[%emt 0:04:06]} 57. Nf7 {[%emt 0:01:57]} Kg4 {[%emt 0:00:37] [#]} 58. Ne5+ $1 {[%emt 0:00:07]} ({Weaker is} 58. Kb3 Kh3 $11) 58... Kh3 {[%emt 0:03:47]} 59. Nf3 {[%emt 0:00:06]} Kg4 {[%emt 0:00:05] [#]} 60. h4 $1 {[%emt 0:00:19] Weighted Error Value: White=0.05 (flawless) /Black=0.34} 1-0

[Event "Teplice Open 2022"]
[Site "Teplice"]
[Date "2022.06.20"]
[Round "3.7"]
[White "Sanal, Vahap"]
[Black "Rubes, Jan"]
[Result "1/2-1/2"]
[ECO "B47"]
[WhiteElo "2575"]
[BlackElo "2386"]
[Annotator "TA"]
[PlyCount "68"]
[EventDate "2022.06.18"]
[EventType "swiss"]
[EventCountry "CZE"]
[SourceTitle "playchess.com"]
[Source "ChessBase"]
[SourceQuality "1"]
[TimeControl "40/5400+30:1800+30"]

{[%evp 22,68,0,-7,12,-19,-13,-30,-18,-20,7,0,26,17,78,78,73,75,85,36,22,25,21,8,18,6,13,0,0,0,0,-5,0,0,0,0,0,0,0,0,0,0,0,0,0,0,0,0,0]} 1. e4 {[%emt 0:01:24]} c5 {[%emt 0:00:14]} 2. Nc3 {[%emt 0:00:07]} e6 {[%emt 0:00:40]} 3. Nf3 {[%emt 0:00:31]} Nc6 {[%emt 0:03:09]} 4. d4 {[%emt 0:00:35]} cxd4 {[%emt 0:00:09]} 5. Nxd4 {[%emt 0:00:05]} Qc7 {[%emt 0:01:07]} 6. g3 {[%emt 0:00:41]} a6 {[%emt 0:01:14]} 7. Bg2 {[%emt 0:00:07]} d6 {[%emt 0:00:21]} 8. O-O {[%emt 0:00:32]} Bd7 {[%emt 0:00:03]} 9. Re1 {[%emt 0:04:59]} Be7 {[%emt 0:00:06]} 10. Nxc6 {[%emt 0:00:28]} Bxc6 {[%emt 0:03:24]} 11. Qg4 {[%emt 0:02:57]} h5 {[%emt 0:00:39]} 12. Qe2 {[%emt 0:00:09]} ({Don't blunder} 12. Qxg7 $2 Bf6 13. Nd5 Bxd5 14. Qxh8 Bxh8 $19) 12... Nf6 {[%emt 0:12:30] B47: Sicilian: Taimanov: 5 Nc3 Qc7 6 f4, 6 g3 and 6 Be2.} 13. a4 {[%emt 0:02:39]} h4 {[%emt 0:09:53]} 14. a5 {[%emt 0:07:38]} hxg3 {[%emt 0:02:06] Black has an edge.} 15. hxg3 {[%emt 0:05:46]} Rh5 {[%emt 0:05:27]} 16. b4 {[%emt 0:02:46]} Rc8 {[%emt 0:06:36] [#]} 17. Bd2 $146 {[%emt 0:08:21]} ({Predecessor:} 17. Rd1 Kf8 18. Ra3 Bd7 19. Bf3 Rh8 20. Bg5 Be8 21. Qe3 Ng8 22. Qd2 Bxg5 23. Qxg5 {½-½ (50) Laurenc,P (2350)-Lazar,A (2309) ICCF email 2009}) 17... g6 {[%emt 0:02:27]} (17... Bd7 $11) 18. Bf3 $16 {[%emt 0:02:05]} Re5 {[%emt 0:03:18]} 19. Bf4 {[%emt 0:02:23]} Nd7 {[%emt 0:03:10]} 20. Bxe5 {[%emt 0:10:58]} (20. Qe3 $16) 20... Nxe5 $14 {[%emt 0:00:03]} 21. Bg2 {[%emt 0:00:13]} Bd7 {[%emt 0:00:36]} 22. Ra3 {[%emt 0:03:43] The position is equal.} Bf6 {[%emt 0:02:54]} 23. Rd1 {[%emt 0:10:27]} g5 {[%emt 0:05:58]} 24. Rb3 {[%emt 0:07:31]} g4 {[%emt 0:00:17][%cal Oe5f3]} 25. Qe3 {[%emt 0:04:18] Against Nf3+} Ke7 {[%emt 0:02:56]} 26. Ne2 {[%emt 0:09:51]} Qxc2 {[%emt 0:02:46]} 27. Rc1 {[%emt 0:01:01]} Qa2 {[%emt 0:03:37] Strongly threatening ...Rxc1+.} 28. Rxc8 {[%emt 0:01:33]} Bxc8 {[%emt 0:00:03]} 29. Nc3 $36 {[%emt 0:08:12][%mdl 2048] White has good play.} Qc2 {[%emt 0:03:14] [#] Threatens to win with ...Nc4.} (29... Qxb3 $2 {[#]} 30. Nd5+ $1 {[%mdl 512]} exd5 31. Qxb3 $18) (29... Nf3+ $2 30. Bxf3 Qa1+ 31. Bd1 $18) 30. Rb1 {[%emt 0:00:03]} Bd7 {[%emt 0:09:31] Hoping for ...Nc4.} (30... Nc4 $5 31. Qc1 Qd3 $11) 31. Rc1 {[%emt 0:00:03]} Qb2 {[%emt 0:01:18][%cal Oe5d3]} 32. Rb1 {[%emt 0:00:02]} Qc2 {[%emt 0:00:12] ...Nc4 is the strong threat.} 33. Rc1 {[%emt 0:00:12]} Qb2 {[%emt 0:00:06][%cal Oe5d3]} 34. Rb1 {[%emt 0:00:39]} Qc2 {[%emt 0:00:07] Weighted Error Value: White=0.08 (flawless) /Black=0.10 (very precise)} 1/2-1/2

[Event "Teplice Open 2022"]
[Site "Teplice"]
[Date "2022.06.20"]
[Round "3.8"]
[White "Moksh Amit Doshi"]
[Black "Postny, Evgeny"]
[Result "1/2-1/2"]
[ECO "D13"]
[WhiteElo "2398"]
[BlackElo "2563"]
[Annotator "TA"]
[PlyCount "61"]
[EventDate "2022.06.18"]
[EventType "swiss"]
[EventCountry "CZE"]
[SourceTitle "playchess.com"]
[Source "ChessBase"]
[SourceQuality "1"]
[TimeControl "40/5400+30:1800+30"]

{[%evp 13,61,7,34,17,17,14,29,30,56,46,46,33,47,48,51,50,56,62,64,60,64,63,66,36,69,62,77,77,88,85,86,56,94,91,89,4,6,0,0,0,0,-4,-5,-4,-4,-6,-4,-29,0,-6]} 1. d4 {[%emt 0:02:07]} d5 {[%emt 0:00:04]} 2. c4 {[%emt 0:00:07]} c6 {[%emt 0:00:05]} 3. Nf3 {[%emt 0:00:39]} Nf6 {[%emt 0:00:07]} 4. cxd5 {[%emt 0:00:16]} cxd5 {[%emt 0:00:08]} 5. Nc3 {[%emt 0:00:05]} Nc6 {[%emt 0:00:38]} 6. Bf4 {[%emt 0:00:12]} a6 {[%emt 0:02:17]} 7. Rc1 $1 {[%emt 0:00:09][%mdl 4] is currently scoring better than 7.e3.} Ne4 {[%emt 0:14:29]} 8. e3 {[%emt 0:05:24] D13: Slav Defence: Exchange variation without ...Bf5.} Nxc3 {[%emt 0:00:33]} 9. bxc3 {[%emt 0:00:28]} e6 {[%emt 0:07:03]} 10. Bd3 {[%emt 0:01:56] White has an edge.} Bd6 {[%emt 0:00:05]} 11. Bxd6 {[%emt 0:01:24]} Qxd6 {[%emt 0:00:05]} 12. O-O {[%emt 0:01:07]} O-O {[%emt 0:02:02]} 13. c4 {[%emt 0:04:18]} dxc4 {[%emt 0:01:49]} 14. Rxc4 {[%emt 0:00:14] [#]} Bd7 $146 {[%emt 0:05:21]} ({Predecessor:} 14... h6 15. Be4 Bd7 16. Qb1 Rac8 17. Rc5 b5 18. Rfc1 Ne7 19. Ne5 Rxc5 20. Rxc5 f6 21. Nxd7 Qxd7 22. Qc2 Rc8 23. g3 Kf7 24. Qc3 Rxc5 25. Qxc5 Nd5 {½-½ (25) Bogner,S (2541)-Grimberg,B (2333) Deizisau 2011}) 15. Qb1 {[%emt 0:02:52][%csl LRb7,LRh7] [#] Black must now prevent d5.} h6 {[%emt 0:00:07]} 16. Rfc1 {[%emt 0:08:41]} ({Don't go for} 16. Qxb7 $2 Rfb8 17. Qxa8 Rxa8 $19) 16... b5 {[%emt 0:22:57]} 17. Rc5 {[%emt 0:01:13]} Rac8 {[%emt 0:00:32]} 18. Bh7+ {[%emt 0:04:39]} Kh8 {[%emt 0:00:47]} 19. Be4 {[%emt 0:00:06]} Ne7 {[%emt 0:05:15]} 20. Ne5 {[%emt 0:08:03]} Rxc5 {[%emt 0:06:05]} 21. Rxc5 {[%emt 0:00:06]} f6 {[%emt 0:00:15]} 22. Nd3 {[%emt 0:05:22] 0x0.00207b1c9ac8dp-1022s more active pieces.} Bc6 {[%emt 0:07:16] [#]} 23. Bxc6 {[%emt 0:04:17]} Nxc6 {[%emt 0:00:04]} 24. a4 {[%emt 0:02:50]} (24. Nf4 $16 Ne7 25. Qb3) 24... bxa4 $11 {[%emt 0:03:07]} 25. Qc2 {[%emt 0:04:31][%csl LRa4,LRc6]} Ne7 {[%emt 0:00:39]} 26. Qxa4 {[%emt 0:02:20]} e5 {[%emt 0:00:40]} 27. Rc1 {[%emt 0:05:13]} exd4 {[%emt 0:00:30]} 28. Qxd4 {[%emt 0:00:08]} Qxd4 {[%emt 0:00:11]} 29. exd4 {[%emt 0:00:07]} Rd8 {[%emt 0:01:01]} 30. Nc5 {[%emt 0:00:08]} Rxd4 {[%emt 0:00:12]} 31. Nxa6 {[%emt 0:00:05] Weighted Error Value: White=0.16 (very precise) /Black=0.09 (flawless)} 1/2-1/2

[Event "Teplice Open 2022"]
[Site "Teplice"]
[Date "2022.06.20"]
[Round "3.9"]
[White "Laurusas, Tomas"]
[Black "Mis, Mieszko"]
[Result "1/2-1/2"]
[ECO "D24"]
[WhiteElo "2567"]
[BlackElo "2388"]
[Annotator "TA"]
[PlyCount "144"]
[EventDate "2022.06.18"]
[EventType "swiss"]
[EventCountry "CZE"]
[SourceTitle "playchess.com"]
[Source "ChessBase"]
[SourceQuality "1"]
[TimeControl "40/5400+30:1800+30"]

{[%evp 9,143,-15,-3,-20,-4,-17,-11,-53,-68,-62,-57,-63,-52,-86,-105,-78,-79,-129,-105,-95,-103,-125,-106,-147,-138,-143,-151,-200,-219,-200,-201,-202,-206,-209,-214,-217,-196,-189,-192,-179,-191,-240,-238,-241,-237,-250,-143,-136,-136,-130,-99,-99,-99,-99,-99,-99,-99,-108,-99,-112,-108,-108,-108,-114,-114,-122,-122,-122,-122,-129,-129,-129,-129,-129,-129,-129,-129,-129,-129,-129,-129,-29968,-29969,-29969,-29970,-29970,-29971,-29972,-29972,-29972,-29973,-29973,-29973,-29975,-29976,-29976,-29977,-29977,-29978,-29978,-29979,-29980,0,-29978,-29979,-29979,-129,-129,-129,-129,-129,-129,-129,-129,-129,-129,-129,-129,-129,-129,-129,-129,-129,-129,-129,-129,-102,-102,-72,-72,-72,-72,0,0,0,0]} 1. d4 {[%emt 0:03:13]} Nf6 {[%emt 0:00:09]} 2. c4 {[%emt 0:00:23]} e6 {[%emt 0:00:09]} 3. Nf3 {[%emt 0:00:05]} d5 {[%emt 0:00:18]} 4. Bg5 {[%emt 0:00:05]} dxc4 {[%emt 0:00:08]} 5. Nc3 {[%emt 0:00:12]} a6 {[%emt 0:00:32]} 6. e3 {[%emt 0:04:09] D24: Queen's Gambit Accepted: 3 Nf3 Nf6 4 Nc3.} b5 {[%emt 0:04:36]} 7. a4 {[%emt 0:02:56]} c6 {[%emt 0:01:06]} 8. Be2 {[%emt 0:16:12]} Bb7 {[%emt 0:01:51]} 9. O-O {[%emt 0:00:08]} Nbd7 {[%emt 0:03:33]} 10. Qc2 {[%emt 0:03:47]} Be7 {[%emt 0:04:06]} 11. e4 {[%emt 0:00:32]} h6 {[%emt 0:08:30]} 12. Bh4 {[%emt 0:01:19]} O-O {[%emt 0:03:04]} 13. Rad1 {[%emt 0:03:54]} (13. Rfd1 $142) 13... Nh5 {[%emt 0:03:37]} 14. Bxe7 {[%emt 0:15:15]} Qxe7 {[%emt 0:00:40]} 15. Rfe1 {[%emt 0:00:18] [#]} Rfd8 $146 {[%emt 0:04:54]} ({Predecessor:} 15... Rad8 16. d5 e5 17. g3 Ndf6 18. axb5 axb5 19. Bf1 Rfe8 20. Bg2 Qc5 21. Nh4 g6 {½-½ (42) Ditmas,H (1872)-Ploog,M (2155) Hamburg 2015}) 16. d5 {[%emt 0:05:57]} Nf4 {[%emt 0:20:20][%cal Rc6d5]} 17. d6 {[%emt 0:08:32]} Qf6 {[%emt 0:00:58]} 18. e5 {[%emt 0:02:43]} (18. g3 $17 Nxe2+ 19. Qxe2) 18... Qg6 $1 $19 {[%emt 0:02:08]} (18... Nxe5 19. Nxe5 Qxe5 20. Bxc4) 19. Qxg6 {[%emt 0:00:17]} Nxg6 {[%emt 0:00:06]} 20. Bf1 {[%emt 0:03:13]} Rab8 {[%emt 0:02:49]} 21. h4 {[%emt 0:07:47]} c5 {[%emt 0:01:37]} 22. Ne4 {[%emt 0:00:04]} Ngxe5 {[%emt 0:03:27]} ({And not} 22... Ndxe5 23. Nxe5 Nxe5 24. Nxc5) 23. Nxe5 {[%emt 0:00:27]} Nxe5 {[%emt 0:00:04]} 24. Nxc5 {[%emt 0:00:21]} Nd7 {[%emt 0:00:03]} 25. Nxd7 {[%emt 0:02:46]} (25. Nxb7 $142 Rxb7 26. g3) 25... Rxd7 {[%emt 0:00:20]} 26. axb5 {[%emt 0:00:02]} axb5 {[%emt 0:00:06]} 27. b3 {[%emt 0:00:01]} Bd5 {[%emt 0:01:56]} (27... cxb3 $19 {And now ...Bd5 would win.} 28. g3 Rbd8) 28. bxc4 $17 {[%emt 0:00:26]} bxc4 {[%emt 0:00:11]} 29. Rd4 {[%emt 0:06:59]} Rc8 {[%emt 0:00:25]} 30. Rc1 {[%emt 0:00:27]} Rxd6 {[%emt 0:22:28]} (30... c3 {looks sharper.} 31. Rd3 c2 32. Rd2 Rxd6 33. Rdxc2 Rxc2 34. Rxc2 g5) 31. Rcxc4 {[%emt 0:00:11]} Bxc4 {[%emt 0:00:20]} 32. Rxd6 {[%emt 0:00:05][%mdl 4096] Endgame KRB-KRB} Bd5 {[%emt 0:00:11] Threatens to win with ...Rc1.} 33. Kh2 {[%emt 0:01:33]} g6 {[%emt 0:00:45]} 34. Rb6 {[%emt 0:01:21]} Kg7 {[%emt 0:00:21]} 35. Rb2 {[%emt 0:00:36]} Ra8 {[%emt 0:00:51]} 36. g3 {[%emt 0:01:52]} Kf6 {[%emt 0:03:30]} 37. Bg2 {[%emt 0:00:22]} Ra2 {[%emt 0:00:23]} 38. Rxa2 {[%emt 0:00:13]} Bxa2 {[%emt 0:00:02] KB-KB} 39. f4 {[%emt 0:03:05]} Kf5 $1 {[%emt 0:03:34]} 40. Bc6 {[%emt 0:01:23]} Bd5 {[%emt 0:03:37]} 41. Be8 {[%emt 0:30:26]} f6 {[%emt 0:31:07] Strongly threatening ...e5.} 42. Bf7 {[%emt 0:00:00]} g5 {[%emt 0:00:00]} 43. fxg5 {[%emt 0:00:00]} fxg5 {[%emt 0:00:00]} ({Of course not} 43... hxg5 $6 44. h5 Kg4 45. Bg6 $11 (45. h6 Be4 $11)) 44. hxg5 {[%emt 0:00:00]} hxg5 {[%emt 0:00:00]} 45. Kg1 $2 {[%emt 0:00:00][%mdl 8192]} (45. Kh3 $17) 45... Ke4 $1 {[%emt 0:00:00]} 46. Kf2 {[%emt 0:00:00]} Kd3 $1 {[%emt 0:00:00]} 47. Bg8 {[%emt 0:00:00]} Kd4 {[%emt 0:00:00]} 48. Ke2 {[%emt 0:00:00]} e5 {[%emt 0:00:00]} 49. Bh7 {[%emt 0:00:00]} Be4 {[%emt 0:00:00]} 50. Bg8 {[%emt 0:00:00] [#]} Bf5 $1 {[%emt 0:00:00]} 51. Ba2 {[%emt 0:02:37]} Bg4+ {[%emt 0:00:00]} 52. Kf2 {[%emt 0:00:06]} Kd3 {[%emt 0:00:00]} 53. Bb1+ {[%emt 0:00:07] [#]} Kd2 $1 {[%emt 0:00:00]} 54. Be4 {[%emt 0:00:57]} Be2 {[%emt 0:00:00]} 55. Bb7 {[%emt 0:00:23]} Bg4 {[%emt 0:00:00]} 56. Be4 {[%emt 0:00:35]} Bd1 {[%emt 0:00:00]} 57. Bb7 {[%emt 0:00:43]} Kd3 $2 {[%emt 0:00:00]} (57... g4 {mates} 58. Be4 Be2 59. Bd5 Bd3 60. Be6 e4 61. Bxg4 e3+ 62. Kg1 Bc2 63. Kh2 Bd1 64. Kh3 Bxg4+ 65. Kxg4 e2 66. Kf5 Kc3 67. Kg6 e1=Q 68. Kg5 Qxg3+ 69. Kf6 Kd4 70. Ke6 Qg6+ 71. Kd7 Kd5 72. Kc7 Qc6+ 73. Kb8 Qd7 74. Ka8 Kc6 75. Kb8 Qb7#) 58. Ba6+ {[%emt 0:00:01]} Kd4 {[%emt 0:00:03]} 59. Ke1 {[%emt 0:01:00]} Bf3 {[%emt 0:00:59] Hoping for ...Ke3.} 60. Kd2 {[%emt 0:00:18]} Bd5 {[%emt 0:00:59]} 61. Bd3 {[%emt 0:01:11]} Be4 {[%emt 0:02:26]} 62. Ba6 {[%emt 0:00:22]} Bb1 {[%emt 0:00:15]} 63. Ke2 {[%emt 0:01:25]} e4 {[%emt 0:00:31] ( -> ...Bd3+)} 64. Kd2 {[%emt 0:00:19]} Bd3 {[%emt 0:01:28]} 65. Bb7 {[%emt 0:00:01]} Bc4 {[%emt 0:00:12]} 66. Bc6 {[%emt 0:00:28]} Bd5 {[%emt 0:03:13]} 67. Bb5 {[%emt 0:00:06]} e3+ {[%emt 0:00:46]} 68. Ke2 {[%emt 0:00:04]} g4 {[%emt 0:00:12]} 69. Bd7 {[%emt 0:00:31]} Bf3+ {[%emt 0:00:31]} 70. Ke1 {[%emt 0:00:06]} e2 {[%emt 0:00:42]} ({Black should play} 70... Kd5 $17) 71. Bb5 $11 {[%emt 0:00:10]} Ke3 {[%emt 0:00:04]} 72. Bxe2 {[%emt 0:00:04]} Bxe2 {[%emt 0:00:04] Weighted Error Value: White=0.19 (very precise) /Black=0.25 (precise)} 1/2-1/2